fUST/lending_fUST_20260109
["ID","MTS","AMOUNT","RATE_DAILY","PERIOD"]
[401084303,1767912638132,-3000.0,0.00016438,2]
[401084304,1767912638142,-200.0,0.00016473,2]
[401084306,1767912638151,-823.0,0.00016505,2]
[401084308,1767912638160,-3500.0,0.0001656,2]
[401084310,1767912638170,-1998.72100815,0.0001656,2]
[401084313,1767912638179,-3500.0,0.0001656,2]
[401084315,1767912638188,-2100.0,0.0001696,2]
[401084316,1767912638197,-1000.0,0.00016964,2]
[401084318,1767912638207,-3500.0,0.00016986,2]
[401084320,1767912638216,-3500.0,0.00016986,2]
[401084322,1767912638225,-2581.49344817,0.00017108,2]
[401084325,1767912638235,-4000.0,0.00017108,2]
[401084327,1767912638248,-2400.0,0.0001726,2]
[401084328,1767912638257,-1149.9029988,0.00017413,2]
[401084331,1767912638267,-267.0,0.00017474,2]
[401084333,1767912638276,-2400.0,0.00017508,2]
[401084335,1767912638286,-4000.0,0.00017534,2]
[401084336,1767912638296,-4000.0,0.00017534,2]
[401084338,1767912638305,-4500.0,0.00017656,2]
[401084340,1767912638316,-479.78804727,0.00017842,2]
[401084342,1767912638325,-2700.0,0.00018056,2]
[401084344,1767912638335,-2895.64095761,0.00018082,2]
[401084347,1767912638345,-4500.0,0.00018082,2]
[401084348,1767912638354,-1152.0,0.00018109,2]
[401084350,1767912638363,-5000.0,0.00018204,2]
[401084352,1767912638372,-1099.64931956,0.00018356,2]
[401084354,1767912638381,-469.83080895,0.00018408,2]
[401084356,1767912638391,-2408.71132532,0.00018604,2]
[401084358,1767912638400,-5000.0,0.0001863,2]
[401084360,1767912638410,-1000.0,0.0001866,2]
[401084362,1767912638419,-244.0,0.0001866,2]
[401084364,1767912638428,-4031.92126105,0.00018752,2]
[401084366,1767912638438,-2451.0153588,0.00018895,2]
[401084368,1767912638451,-230.19474322,0.00018959,3]
[401084371,1767912638460,-520.65118244,0.00018989,2]
[401084373,1767912638470,-981.06279554,0.00018989,2]
[401084375,1767912638479,-981.06279554,0.00018989,2]
[401084377,1767912638489,-981.06279554,0.00018989,2]
[401084379,1767912638498,-981.06279554,0.00018989,2]
[401084381,1767912638507,-981.06279554,0.00018989,2]
[401084383,1767912638516,-981.06279554,0.00018989,2]
[401084385,1767912638525,-981.06279554,0.00018989,2]
[401084387,1767912638534,-981.06279554,0.00018989,2]
[401084389,1767912638545,-981.06279554,0.00018989,2]
[401084391,1767912638555,-981.06279554,0.00018989,2]
[401084393,1767912638564,-981.06279554,0.00018989,2]
[401084394,1767912638574,-981.06279554,0.00018989,2]
[401084396,1767912638583,-1030.11593532,0.00018989,2]
[401084398,1767912638592,-1030.11593532,0.00018989,2]
[401084400,1767912638601,-1030.11593532,0.00018989,2]
[401084402,1767912638611,-1030.11593532,0.00018989,2]
[401084404,1767912638620,-1030.11593532,0.00018989,2]
[401084406,1767912638629,-1030.11593532,0.00018989,2]
[401084408,1767912638639,-1030.11593532,0.00018989,2]
[401084410,1767912638650,-1030.11593532,0.00018989,2]
[401084413,1767912638659,-1030.11593532,0.00018989,2]
[401084414,1767912638668,-1129.69380908,0.00018989,2]
[401084416,1767912638678,-1129.69380908,0.00018989,2]
[401084418,1767912638687,-1129.69380908,0.00018989,2]
[401084420,1767912638697,-1129.69380908,0.00018989,2]
[401084422,1767912638706,-1129.69380908,0.00018989,2]
[401084424,1767912638716,-1129.69380908,0.00018989,2]
[401084426,1767912638725,-100000.0,0.0001899,2]
[401084428,1767912638734,-2451.0153588,0.00019031,2]
[401084430,1767912638744,-5500.0,0.00019178,2]
[401084432,1767912638753,-163.0,0.000192,2]
[401084434,1767912638762,-162.88,0.000192,2]
[401084436,1767912638771,-167.4,0.000192,2]
[401084438,1767912638780,-904.83,0.000192,2]
[401084440,1767912638789,-17902.14,0.000192,2]
[401084442,1767912638798,-2451.0153588,0.00019435,2]
[401084444,1767912638807,-2451.0153588,0.00019494,2]
[401084446,1767912638816,-1149.9029988,0.00019719,2]
[401084448,1767912638826,-6000.0,0.00019726,2]
[401084450,1767912638835,-2451.0153588,0.00019808,2]
[401084453,1767912638845,-1613.0,0.0001987,2]
[401084454,1767912638854,-1003.0,0.0002,2]
[401084456,1767912638864,-300.26582625,0.0002,2]
[401084458,1767912638874,-2451.0153588,0.00020196,2]
[401084461,1767912638884,-6500.0,0.00020274,2]
[401084463,1767912638896,-170.598297,0.00020298,2]
[401084465,1767912638905,-2451.0153588,0.00020328,2]
[401084467,1767912638915,-419.6,0.00020358,2]
[401084469,1767912638924,-524.74609831,0.00020408,2]
[401084471,1767912638935,-959.99712208,0.00020467,2]
[401084473,1767912638944,-1000.0,0.00020527,2]
[401084475,1767912638954,-492.0,0.00020527,2]
[401084477,1767912638963,-1041.66666667,0.00020553,2]
[401084479,1767912638972,-2451.0153588,0.00020624,2]
[401084481,1767912638982,-6005.53140952,0.00020822,2]
[401084483,1767912638991,-2451.0153588,0.00021018,2]
[401084485,1767912639000,-184.0,0.00021151,4]
[401084487,1767912639010,-2451.0153588,0.00021196,2]
[401084489,1767912639019,-17902.14,0.000212,2]
[401084491,1767912639028,-904.83,0.000214,2]
[401084493,1767912639037,-2451.0153588,0.00021402,2]
[401084495,1767912639046,-170.9785477,0.00021411,2]
[401084497,1767912639056,-419.6,0.00021527,2]
[401084499,1767912639065,-403.0,0.00021802,2]
[401084501,1767912639075,-2451.0153588,0.0002185,2]
[401084503,1767912639084,-151.17138734,0.00021918,2]
[401084505,1767912639093,-2451.0153588,0.00021997,2]
[401084507,1767912639103,-518.09,0.00022,7]
[401084509,1767912639112,-65900.90410488,0.00022,2]
[401084511,1767912639121,-2451.0153588,0.00022203,2]
[401084513,1767912639130,-579.66138767,0.00022408,2]
[401084515,1767912639139,-2000.51544348,0.00022413,2]
[401084517,1767912639148,-2451.0153588,0.00022547,2]
[401084519,1767912639158,-1000.0,0.00022579,10]
[401084521,1767912639168,-791.0,0.00022579,10]
[401084523,1767912639178,-419.6,0.00022697,2]
[401084525,1767912639187,-489.77043783,0.00022793,2]
[401084527,1767912639197,-1957.12266958,0.00022793,2]
[401084529,1767912639206,-2451.0153588,0.00022864,2]
[401084531,1767912639216,-462.45,0.00023,2]
[401084533,1767912639225,-2451.0153588,0.00023108,2]
[401084535,1767912639236,-186.0,0.00023342,9]
[401084537,1767912639247,-2451.0153588,0.00023494,2]
[401084539,1767912639258,-151.0,0.000236,8]
[401084541,1767912639268,-17902.14,0.000236,2]
[401084543,1767912639278,-2451.0153588,0.00023783,2]
[401084545,1767912639288,-419.6,0.00023866,2]
[401084547,1767912639297,-904.83,0.000239,14]
[401084550,1767912639307,-160.18626186,0.00023932,2]
[401084552,1767912639318,-172.18674375,0.00023989,2]
[401084554,1767912639328,-2451.0153588,0.00024051,2]
[401084555,1767912639337,-518.09,0.000241,7]
[401084557,1767912639348,-162.88,0.000241,7]
[401084559,1767912639357,-163.0,0.000241,7]
[401084561,1767912639367,-2451.0153588,0.00024163,2]
[401084563,1767912639375,-634.57667703,0.00024408,2]
[401084564,1767912639384,-1696.2991489,0.00024492,2]
[401084565,1767912639393,-6930.3655512,0.00024492,2]
[401084566,1767912639402,-2268.9195886,0.00024492,2]
[401084567,1767912639411,-399.1292115,0.00024492,2]
[401084568,1767912639419,-2451.0153605,0.00024637,2]
[401084569,1767912639428,-380.0,0.00024658,2]
[401084570,1767912639438,-299.49696734,0.00024658,2]
[401084571,1767912639446,-1197.98786936,0.00024658,2]
[401084572,1767912639455,-2695.47270605,0.00024658,2]
[401084573,1767912639464,-4791.95147743,0.00024658,2]
[401084574,1767912639473,-7487.42418349,0.00024658,2]
[401084575,1767912639482,-10781.89082422,0.00024658,2]
[401084576,1767912639490,-353.7636101,0.00024658,2]
[401084577,1767912639500,-1415.05444041,0.00024658,2]
[401084578,1767912639508,-3183.87249091,0.00024658,2]
[401084580,1767912639517,-5660.21776163,0.00024658,2]
[401084582,1767912639526,-8844.09025254,0.00024658,2]
[401084584,1767912639535,-151.0,0.000248,7]
[401084585,1767912639544,-298.474692,0.000248,7]
[401084586,1767912639553,-151.0,0.000248,7]
[401084587,1767912639562,-151.0,0.000248,7]
[401084588,1767912639571,-289.370538,0.000248,7]
[401084589,1767912639579,-289.370538,0.000248,7]
[401084590,1767912639588,-289.370538,0.000248,7]
[401084591,1767912639597,-289.370538,0.000248,7]
[401084592,1767912639606,-2566.24195815,0.000248,2]
[401084593,1767912639615,-417.697268,0.000248,7]
[401084594,1767912639624,-417.697268,0.000248,7]
[401084596,1767912639633,-151.0,0.000248,7]
[401084598,1767912639643,-417.697268,0.000248,7]
[401084600,1767912639652,-417.697268,0.000248,7]
[401084602,1767912639662,-151.0,0.000248,7]
[401084604,1767912639671,-151.0,0.000248,7]
[401084606,1767912639680,-151.0,0.000248,7]
[401084608,1767912639689,-163.657676,0.000248,7]
[401084610,1767912639698,-163.657676,0.000248,7]
[401084612,1767912639707,-163.657676,0.000248,7]
[401084614,1767912639716,-163.657676,0.000248,7]
[401084616,1767912639726,-151.0,0.000248,7]
[401084618,1767912639735,-151.0,0.000248,7]
[401084620,1767912639744,-151.58214,0.000248,7]
[401084622,1767912639753,-151.0,0.000248,7]
[401084624,1767912639762,-151.0,0.000248,7]
[401084626,1767912639771,-151.0,0.000248,7]
[401084628,1767912639781,-151.0,0.000248,7]
[401084630,1767912639790,-151.0,0.000248,7]
[401084632,1767912639799,-151.0,0.000248,7]
[401084634,1767912639808,-232.721507,0.000248,7]
[401084636,1767912639817,-151.0,0.000248,7]
[401084638,1767912639826,-151.0,0.000248,7]
[401084640,1767912639835,-46755.1534569,0.000248,2]
[401084642,1767912639844,-262.112916,0.000248,7]
[401084644,1767912639853,-153.151954,0.000248,7]
[401084646,1767912639862,-168.916695,0.000248,7]
[401084647,1767912639871,-151.0,0.000248,7]
[401084650,1767912639880,-199.159262,0.000248,7]
[401084651,1767912639889,-199.159262,0.000248,7]
[401084653,1767912639899,-199.159262,0.000248,7]
[401084655,1767912639909,-151.0,0.000248,2]
[401084657,1767912639920,-199.159262,0.000248,7]
[401084659,1767912639929,-151.0,0.000248,7]
[401084661,1767912639938,-209.694433,0.000248,7]
[401084663,1767912639947,-151.0,0.000248,7]
[401084665,1767912639956,-151.0,0.000248,7]
[401084667,1767912639966,-151.0,0.000248,7]
[401084669,1767912639975,-1912.968557,0.000248,7]
[401084685,1767912640114,-151.0,0.000248,7]
[401084687,1767912640124,-1912.968557,0.000248,7]
[401084689,1767912640134,-151.0,0.000248,7]
[401084691,1767912640143,-1912.968557,0.000248,7]
[401084693,1767912640152,-1912.968557,0.000248,7]
[401084695,1767912640161,-151.0,0.000248,7]
[401084697,1767912640170,-151.0,0.000248,7]
[401084699,1767912640179,-151.0,0.000248,7]
[401084701,1767912640188,-151.0,0.000248,7]
[401084703,1767912640196,-154.36524,0.000248,7]
[401084705,1767912640206,-151.0,0.000248,7]
[401084707,1767912640215,-151.0,0.000248,7]
[401084709,1767912640223,-151.0,0.000248,7]
[401084711,1767912640233,-151.0,0.000248,7]
[401084713,1767912640245,-151.0,0.000248,7]
[401084715,1767912640254,-151.0,0.000248,7]
[401084717,1767912640263,-151.0,0.000248,7]
[401084719,1767912640272,-151.0,0.000248,7]
[401084721,1767912640283,-151.0,0.000248,7]
[401084723,1767912640292,-7708.90119015,0.00024837,2]
[401084725,1767912640301,-1000.0,0.00024837,10]
[401084727,1767912640312,-1000.0,0.00024837,10]
[401084729,1767912640321,-170.598297,0.00024864,2]
[401084731,1767912640330,-3117.01023046,0.0002489,2]
[401084733,1767912640339,-253.179,0.000249,8]
[401084735,1767912640348,-151.0,0.000249,7]
[401084737,1767912640357,-151.0,0.000249,7]
[401084739,1767912640366,-189.075092,0.000249,7]
[401084741,1767912640375,-189.075092,0.000249,7]
[401084743,1767912640384,-189.075092,0.000249,7]
[401084745,1767912640393,-151.0,0.000249,7]
[401084747,1767912640403,-189.075092,0.000249,7]
[401084749,1767912640412,-151.0,0.000249,7]
[401084751,1767912640421,-303.930909,0.000249,7]
[401084753,1767912640430,-303.930909,0.000249,7]
[401084755,1767912640439,-303.930909,0.000249,7]
[401084757,1767912640448,-303.930909,0.000249,7]
[401084759,1767912640456,-151.0,0.000249,7]
[401084760,1767912640465,-699.163556,0.000249,7]
[401084762,1767912640475,-699.163556,0.000249,7]
[401084764,1767912640484,-699.163556,0.000249,7]
[401084766,1767912640493,-699.163556,0.000249,7]
[401084768,1767912640502,-151.0,0.000249,7]
[401084770,1767912640511,-151.0,0.000249,7]
[401084772,1767912640520,-151.0,0.000249,7]
[401084774,1767912640530,-1041.66666667,0.000249,7]
[401084776,1767912640539,-310.474251,0.000249,7]
[401084778,1767912640549,-218.447401,0.000249,7]
[401084780,1767912640558,-151.0,0.000249,7]
[401084782,1767912640567,-218.447401,0.000249,7]
[401084784,1767912640577,-310.474251,0.000249,7]
[401084787,1767912640586,-218.447401,0.000249,7]
[401084788,1767912640595,-310.474251,0.000249,7]
[401084790,1767912640605,-218.447401,0.000249,7]
[401084792,1767912640614,-310.474251,0.000249,7]
[401084794,1767912640624,-151.0,0.000249,7]
[401084796,1767912640633,-151.0,0.000249,7]
[401084798,1767912640642,-151.0,0.000249,7]
[401084800,1767912640651,-184.679172,0.000249,7]
[401084802,1767912640660,-151.0,0.000249,7]
[401084804,1767912640669,-152.763427,0.000249,7]
[401084806,1767912640679,-289.370538,0.000249,7]
[401084808,1767912640689,-289.370538,0.000249,7]
[401084810,1767912640698,-289.370538,0.000249,7]
[401084812,1767912640707,-289.370538,0.000249,7]
[401084814,1767912640717,-417.697268,0.000249,7]
[401084816,1767912640726,-417.697268,0.000249,7]
[401084818,1767912640735,-151.0,0.000249,7]
[401084820,1767912640744,-417.697268,0.000249,7]
[401084822,1767912640752,-417.697268,0.000249,7]
[401084824,1767912640762,-151.0,0.000249,7]
[401084826,1767912640771,-151.0,0.000249,7]
[401084828,1767912640781,-151.0,0.000249,7]
[401084830,1767912640790,-163.657676,0.000249,7]
[401084832,1767912640799,-163.657676,0.000249,7]
[401084834,1767912640808,-163.657676,0.000249,7]
[401084836,1767912640817,-163.657676,0.000249,7]
[401084838,1767912640826,-151.0,0.000249,7]
[401084840,1767912640835,-151.0,0.000249,7]
[401084842,1767912640844,-1041.66666667,0.000249,7]
[401084843,1767912640853,-151.0,0.000249,7]
[401084845,1767912640862,-151.0,0.000249,7]
[401084847,1767912640871,-151.0,0.000249,7]
[401084849,1767912640881,-151.0,0.000249,7]
[401084851,1767912640891,-151.0,0.000249,7]
[401084853,1767912640901,-151.0,0.000249,7]
[401084855,1767912640910,-238.415405,0.000249,7]
[401084857,1767912640919,-151.0,0.000249,7]
[401084859,1767912640928,-637582.872583,0.000249,2]
[401084861,1767912640937,-151.0,0.000249,7]
[401084863,1767912640946,-199.159262,0.000249,7]
[401084865,1767912640955,-199.159262,0.000249,7]
[401084867,1767912640965,-199.159262,0.000249,7]
[401084869,1767912640974,-151.0,0.000249,2]
[401084871,1767912640983,-199.159262,0.000249,7]
[401084873,1767912640992,-151.0,0.000249,7]
[401084875,1767912641001,-151.0,0.000249,7]
[401084877,1767912641010,-151.0,0.000249,7]
[401084879,1767912641019,-151.858704,0.000249,7]
[401084881,1767912641028,-1912.968557,0.000249,7]
[401084883,1767912641038,-1912.968557,0.000249,7]
[401084885,1767912641047,-151.0,0.000249,7]
[401084887,1767912641056,-1912.968557,0.000249,7]
[401084889,1767912641065,-1912.968557,0.000249,7]
[401084891,1767912641074,-151.0,0.000249,7]
[401084893,1767912641083,-151.0,0.000249,7]
[401084895,1767912641092,-151.0,0.000249,7]
[401084897,1767912641102,-151.0,0.000249,7]
[401084899,1767912641111,-178.75645,0.000249,7]
[401084901,1767912641120,-151.0,0.000249,7]
[401084903,1767912641129,-151.0,0.000249,7]
[401084905,1767912641138,-202.995975,0.000249,7]
[401084906,1767912641147,-151.0,0.000249,7]
[401084908,1767912641156,-151.0,0.000249,7]
[401084910,1767912641165,-151.0,0.000249,7]
[401084912,1767912641174,-151.0,0.000249,7]
[401084914,1767912641183,-151.0,0.000249,7]
[401084916,1767912641193,-228.045363,0.000249,7]
[401084918,1767912641202,-151.0,0.000249,7]
[401084920,1767912641211,-151.0,0.000249,7]
[401084922,1767912641219,-151.0,0.000249,7]
[401084924,1767912641228,-151.0,0.000249,7]
[401084926,1767912641239,-1000.0,0.000249,2]
[401084928,1767912641249,-1000.0,0.000249,2]
[401084929,1767912641258,-1000.0,0.000249,2]
[401084931,1767912641267,-1000.0,0.000249,2]
[401084933,1767912641276,-1367.879656,0.000249,7]
[401084935,1767912641286,-151.0,0.000249,7]
[401084937,1767912641295,-1367.879656,0.000249,7]
[401084939,1767912641304,-1367.879656,0.000249,7]
[401084941,1767912641316,-1367.879656,0.000249,7]
[401084943,1767912641325,-497.7666,0.000249,7]
[401084945,1767912641334,-497.7666,0.000249,7]
[401084946,1767912641343,-497.7666,0.000249,7]
[401084948,1767912641352,-167.94341584,0.000249,2]
[401084950,1767912641361,-497.7666,0.000249,7]
[401084952,1767912641370,-151.0,0.000249,7]
[401084954,1767912641379,-605.87241,0.000249,7]
[401084956,1767912641389,-605.87241,0.000249,7]
[401084958,1767912641398,-978.076784,0.000249,7]
[401084960,1767912641407,-151.0,0.000249,2]
[401084962,1767912641417,-605.87241,0.000249,7]
[401084964,1767912641426,-978.076784,0.000249,7]
[401084966,1767912641435,-151.0,0.000249,2]
[401084968,1767912641444,-605.87241,0.000249,7]
[401084969,1767912641454,-978.076784,0.000249,7]
[401084971,1767912641463,-978.076784,0.000249,7]
[401084973,1767912641473,-151.0,0.000249,7]
[401084975,1767912641483,-151.0,0.000249,7]
[401084977,1767912641492,-151.0,0.000249,7]
[401084979,1767912641501,-227.082154,0.000249,7]
[401084981,1767912641510,-446.0,0.00024932,7]
[401084983,1767912641519,-3117.01023046,0.00024977,2]
[401084985,1767912641529,-1093.27707489,0.00024987,2]
[401084987,1767912641539,-151.0,0.00024987,2]
[401084988,1767912641548,-151.0,0.00024987,2]
[401084990,1767912641558,-151.0,0.00024987,2]
[401084993,1767912641571,-250.0,0.00024987,2]
[401084995,1767912641583,-478.75725327,0.00024987,2]
[401084997,1767912641595,-151.0,0.00024987,2]
[401084999,1767912641607,-250.0,0.00024987,2]
[401085001,1767912641617,-151.0,0.00024987,2]
[401085003,1767912641628,-250.0,0.00024987,2]
[401085005,1767912641640,-2312.83697232,0.00024987,2]
[401085008,1767912641651,-250.0,0.00024987,2]
[401085010,1767912641663,-151.0,0.00024987,2]
[401085012,1767912641674,-250.0,0.00024987,2]
[401085014,1767912641687,-311.1,0.00024987,2]
[401085016,1767912641699,-151.0,0.00024987,2]
[401085018,1767912641712,-151.0,0.00024987,2]
[401085020,1767912641723,-250.0,0.00024987,2]
[401085022,1767912641735,-151.0,0.00024987,2]
[401085024,1767912641748,-151.15345632,0.00024987,2]
[401085027,1767912641760,-151.0,0.00024987,2]
[401085029,1767912641771,-151.0,0.00024987,2]
[401085031,1767912641782,-250.0,0.00024987,2]
[401085033,1767912641793,-250.0,0.00024987,2]
[401085035,1767912641805,-151.0,0.00024987,2]
[401085037,1767912641815,-151.0,0.00024987,2]
[401085040,1767912641826,-250.0,0.00024987,2]
[401085042,1767912641836,-250.0,0.00024987,2]
[401085044,1767912641848,-151.0,0.00024987,2]
[401085046,1767912641861,-151.0,0.00024987,2]
[401085048,1767912641871,-250.0,0.00024987,2]
[401085050,1767912641883,-250.0,0.00024987,2]
[401085052,1767912641892,-151.0,0.00024987,2]
[401085054,1767912641902,-151.0,0.00024987,2]
[401085056,1767912641912,-250.0,0.00024987,2]
[401085058,1767912641924,-250.0,0.00024987,2]
[401085060,1767912641933,-151.0,0.00024987,2]
[401085062,1767912641944,-151.0,0.00024987,2]
[401085064,1767912641956,-250.0,0.00024987,2]
[401085065,1767912641967,-250.0,0.00024987,2]
[401085066,1767912641980,-151.0,0.00024987,2]
[401085067,1767912641990,-151.0,0.00024987,2]
[401085068,1767912642002,-250.0,0.00024987,2]
[401085069,1767912642014,-250.0,0.00024987,2]
[401085070,1767912642025,-151.0,0.00024987,2]
[401085071,1767912642037,-151.0,0.00024987,2]
[401085072,1767912642047,-250.0,0.00024987,2]
[401085073,1767912642057,-250.0,0.00024987,2]
[401085074,1767912642067,-151.0,0.00024987,2]
[401085075,1767912642077,-151.0,0.00024987,2]
[401085076,1767912642087,-250.0,0.00024987,2]
[401085077,1767912642098,-250.0,0.00024987,2]
[401085078,1767912642109,-151.0,0.00024987,2]
[401085080,1767912642121,-250.0,0.00024987,2]
[401085082,1767912642133,-151.0,0.00024987,2]
[401085084,1767912642144,-250.0,0.00024987,2]
[401085086,1767912642154,-151.0,0.00024987,2]
[401085088,1767912642164,-151.0,0.00024987,2]
[401085090,1767912642175,-250.0,0.00024987,2]
[401085093,1767912642185,-151.0,0.00024987,2]
[401085095,1767912642197,-151.0,0.00024987,2]
[401085097,1767912642208,-250.0,0.00024987,2]
[401085099,1767912642219,-151.0,0.00024987,2]
[401085101,1767912642229,-151.0,0.00024987,2]
[401085103,1767912642243,-250.0,0.00024987,2]
[401085105,1767912642254,-151.0,0.00024987,2]
[401085107,1767912642264,-204.04740032,0.00024987,2]
[401085109,1767912642275,-250.0,0.00024987,2]
[401085111,1767912642286,-250.0,0.00024987,2]
[401085114,1767912642296,-30000.0,0.00024987,2]
[401085116,1767912642308,-250.0,0.00024987,2]
[401085118,1767912642320,-250.0,0.00024987,2]
[401085120,1767912642331,-250.0,0.00024987,2]
[401085122,1767912642341,-1500.0,0.00024987,2]
[401085124,1767912642352,-250.0,0.00024987,2]
[401085126,1767912642362,-1500.0,0.00024987,2]
[401085128,1767912642372,-250.0,0.00024987,2]
[401085131,1767912642383,-1500.0,0.00024987,2]
[401085133,1767912642393,-250.0,0.00024987,2]
[401085135,1767912642405,-1500.0,0.00024987,2]
[401085137,1767912642416,-500.0,0.00024987,2]
[401085139,1767912642427,-250.0,0.00024987,2]
[401085141,1767912642437,-1500.0,0.00024987,2]
[401085143,1767912642447,-500.0,0.00024987,2]
[401085146,1767912642458,-250.0,0.00024987,2]
[401085148,1767912642468,-1500.0,0.00024987,2]
[401085150,1767912642479,-500.0,0.00024987,2]
[401085152,1767912642489,-250.0,0.00024987,2]
[401085154,1767912642501,-305.03589373,0.00024987,2]
[401085156,1767912642511,-1500.0,0.00024987,2]
[401085158,1767912642522,-500.0,0.00024987,2]
[401085160,1767912642533,-250.0,0.00024987,2]
[401085163,1767912642543,-609.47325435,0.00024987,2]
[401085165,1767912642554,-1271.89158797,0.00024987,2]
[401085167,1767912642565,-250.0,0.00024987,2]
[401085169,1767912642575,-250.0,0.00024987,2]
[401085171,1767912642586,-2030.296672,0.00024987,2]
[401085173,1767912642597,-340836.282992,0.00024989,2]
[401085175,1767912642608,-446.0,0.00025,7]
[401085177,1767912642619,-419.6,0.00025035,2]
[401085180,1767912642630,-2105.41764886,0.00025042,2]
[401085182,1767912642640,-2183.31810187,0.00025097,2]
[401085184,1767912642651,-3117.01023046,0.00025131,2]
[401085186,1767912642662,-2264.10087164,0.00025152,2]
[401085188,1767912642672,-250.0,0.00025205,2]
[401085190,1767912642683,-2347.87260389,0.00025207,2]
[401085192,1767912642694,-151.0,0.00025262,7]
[401085195,1767912642705,-199.159262,0.00025262,7]
[401085197,1767912642715,-199.159262,0.00025262,7]
[401085199,1767912642725,-199.159262,0.00025262,7]
[401085201,1767912642735,-199.159262,0.00025262,7]
[401085203,1767912642746,-151.0,0.00025262,7]
[401085205,1767912642756,-151.0,0.00025262,7]
[401085207,1767912642766,-1912.968557,0.00025262,7]
[401085209,1767912642777,-151.0,0.00025262,7]
[401085212,1767912642788,-1912.968557,0.00025262,7]
[401085214,1767912642798,-1912.968557,0.00025262,7]
[401085216,1767912642809,-1912.968557,0.00025262,7]
[401085218,1767912642819,-151.0,0.00025262,7]
[401085220,1767912642828,-151.0,0.00025262,7]
[401085222,1767912642839,-151.0,0.00025262,7]
[401085224,1767912642850,-151.0,0.00025262,7]
[401085227,1767912642860,-151.0,0.00025262,7]
[401085229,1767912642870,-151.0,0.00025262,7]
[401085231,1767912642881,-151.0,0.00025262,7]
[401085233,1767912642891,-151.0,0.00025262,7]
[401085235,1767912642901,-151.0,0.00025262,7]
[401085237,1767912642912,-151.0,0.00025262,7]
[401085240,1767912642923,-2434.74389024,0.00025262,2]
[401085242,1767912642933,-3117.01023046,0.0002529,2]
[401085244,1767912642943,-17902.14,0.000253,2]
[401085246,1767912642954,-1369.47464648,0.00025317,2]
[401085248,1767912642964,-904.83,0.000254,14]
[401085250,1767912642974,-3117.01023046,0.00025502,2]
[401085252,1767912642985,-151.0,0.00025512,7]
[401085254,1767912642995,-151.0,0.00025512,7]
[401085257,1767912643007,-189.075092,0.00025512,7]
[401085259,1767912643017,-189.075092,0.00025512,7]
[401085261,1767912643029,-189.075092,0.00025512,7]
[401085263,1767912643041,-151.0,0.00025512,7]
[401085265,1767912643053,-189.075092,0.00025512,7]
[401085267,1767912643064,-151.0,0.00025512,7]
[401085269,1767912643075,-303.930909,0.00025512,7]
[401085272,1767912643087,-303.930909,0.00025512,7]
[401085274,1767912643098,-303.930909,0.00025512,7]
[401085276,1767912643108,-303.930909,0.00025512,7]
[401085278,1767912643118,-151.0,0.00025512,7]
[401085280,1767912643127,-699.163556,0.00025512,7]
[401085282,1767912643136,-699.163556,0.00025512,7]
[401085284,1767912643145,-699.163556,0.00025512,7]